Cogmind - Beta 11.1 @@@ ROGUE MODE // 2022.05.24 @ 10:35:00 Player: ChromeKnight Result: Destroyed by as-36357 with Assembled Heavy Rifle Performance ------------- Evolutions (0) 0 Regions Visited (2) 400 Robots Destroyed (44) 220 Value Destroyed (651) 651 Prototype IDs (2) 40 Alien Tech Used (0) 0 Bonus (0) 0 TOTAL SCORE: 1311 Bonus ------- None Cogmind --------- Core Integrity 0/250 Matter 300/300 Energy 100/100 System Corruption 0% Temperature Cool (15) Movement Walking (260) Ox2 Location -10/Mines Parts ------- > --- POWER (1) -------- (None) > --- PROPULSION (2) --- Aluminum Leg > --- UTILITY (2) ------ Large Storage Unit Medium Armor Plating > --- WEAPON (2) ------- (None) > --- INVENTORY (15) --- Aluminum Leg Aluminum Leg Aluminum Leg Aluminum Leg Heat Sink Disposable Heat Sink Disposable Heat Sink Medium Storage Unit High-capacity Battery (250) Targeting Computer Medium Armor Plating Medium Armor Plating Beam Rifle Spread Laser Spread Laser Peak State ------------ > --- POWER ------------ Ion Engine > --- PROPULSION ------- Aluminum Leg Aluminum Leg > --- UTILITY ---------- Disposable Heat Sink Large Storage Unit > --- WEAPON ----------- Beam Rifle Beam Rifle > --- INVENTORY -------- Aluminum Leg Aluminum Leg Aluminum Leg Aluminum Leg Heat Sink Heat Sink Medium Storage Unit High-capacity Battery Targeting Computer Beam Rifle Beam Rifle Spread Laser Spread Laser Spread Laser Spread Laser [Rating: 12] Favorites ----------- Power Ion Engine Engine Ion Engine Propulsion Aluminum Leg Treads Light Treads Leg Aluminum Leg Utility Disposable Heat Sink Device Disposable Heat Sink Storage Large Storage Unit Protection Medium Armor Plating Weapon Beam Rifle Energy Gun Beam Rifle Ballistic Gun Light Assault Rifle Ballistic Cannon Light Cannon Launcher Rocket Launcher Build | -11 -10 -10 ------- Run | Scr Mat Min Slots Evolved . | . . . Power . | . . . Propulsion . | . . . Utility . | . . . Weapon . | . . . Parts Attached 36 | 8 23 5 Power 4 | 1 3 . Engine 4 | 1 3 . Core . | . . . Reactor . | . . . Propulsion 11 | 4 5 2 Treads 4 | 2 2 . Leg 7 | 2 3 2 Wheel . | . . . Hover . | . . . Flight . | . . . Utility 7 | 1 5 1 Device 4 | . 4 . Storage 2 | 1 1 . Processor . | . . . Hackware . | . . . Protection 1 | . . 1 Artifact . | . . . Weapon 14 | 2 10 2 Energy Gun 6 | . 5 1 Energy Cannon . | . . . Ballistic Gun 4 | 2 2 . Ballistic Cannon 3 | . 3 . Launcher 1 | . . 1 Special Weapon . | . . . Impact Weapon . | . . . Slashing Weapon . | . . . Piercing Weapon . | . . . Special Melee Weapon . | . . . Unidentified Prototypes . | . . . Parts Lost 6 | . 3 3 Power 1 | . 1 . Propulsion 3 | . 2 1 Utility . | . . . Weapon 2 | . . 2 Highest Loss Streak 3 | . 1 3 To Critical Strikes . | . . . Average Slot Usage (%) 96 | . 95 99 Engine 13 | . 13 14 Treads 2 | . 2 . Leg 22 | . 22 28 Device 13 | . 13 13 Storage 14 | . 14 14 Energy Gun 20 | . 19 26 Ballistic Gun 4 | . 5 . Ballistic Cannon 2 | . 2 . Naked Turns . | . . . Heaviest Build 32 | 13 32 32 Greatest Support 40 | 40 40 20 Greatest Overweight (x) 4 | . 4 1 Average Overweight (x) . | . . 1 Largest Inventory Capacity 15 | 8 15 15 Average Capacity 12 | 7 12 15 Most Carried 15 | 7 15 15 Average Carried 10 | 3 10 15 Final Capacity 15 | 8 15 15 Final Carried 15 | 7 15 15 Class Distribution -------------------- 95% | Mutant 4% | Scavenger-Mutant Dominant Class ---------------- Mutant | -10/Materials Mutant | -10/Mines Resources | -11 -10 -10 ----------- Run | Scr Mat Min Matter Collected 922 | 364 478 80 Remotely . | . . . Salvage Created 1319 | 273 856 190 Parts 78 | 28 41 9 Haulers Intercepted 2 | . 2 . Recyclers Shooed 2 | . 1 1 Parts Field Recycled . | . . . Retrieved Matter . | . . . Parts Self-Destructed . | . . . Prevented . | . . . Kills | -11 -10 -10 ------- Run | Scr Mat Min Combat Hostiles Destroyed 19 | . 15 4 Guns 14 | . 11 3 Cannons 4 | . 4 . AOE 1 | . . 1 Classes Destroyed 7 | 3 4 . Worker 4 | 2 2 . Tunneler 9 | 8 . 1 Hauler 2 | . 2 . Recycler 7 | 1 4 2 Watcher 3 | . 3 . Swarmer 8 | . 6 2 Grunt 11 | . 9 2 Best Kill Streak 4 | 4 4 3 Combat Bots Only 4 | . 4 2 Max Kills in Single Turn 1 | 1 1 1 Gunslinging . | . . . Exploded 1 | . . 1 Melee . | . . . Uniques/NPCs Destroyed . | . . . Combat | -11 -10 -10 -------- Run | Scr Mat Min Damage Taken 1387 | . 804 583 Core 261 | . 145 116 Absorbed by Shields . | . . . Core Remaining (%) 100 | 100 . . Volleys Fired 108 | 21 75 12 Largest 2 | 2 2 2 Hottest 130 | 40 130 130 Shots Fired 204 | 42 140 22 Gun 172 | 42 111 19 Cannon 29 | . 29 . Launcher 3 | . . 3 Special . | . . . Kinetic 152 | 42 110 . Thermal 49 | . 30 19 Explosive 3 | . . 3 Electromagnetic . | . . . Robot Hit Streak 14 | 8 14 7 Robot Miss Streak 8 | 4 6 8 Penetration Max . | . . . Secondary Targets 1 | . . 1 Max Gunslinging Chain 1 | . . 1 Shots Hit Robots 137 | 25 92 20 Core Hits 89 | 13 43 33 Critical Kills . | . . . Critical Parts Destroyed . | . . . Critical Strikes 5 | . 5 . Burn 3 | . 3 . Blast 2 | . 2 . Melee Attacks . | . . . Impact . | . . . Slashing . | . . . Piercing . | . . . Sneak Attacks . | . . . Combat Hostiles . | . . . Follow-up Attacks . | . . . Damage Inflicted 1893 | 279 1209 405 Guns 1412 | 279 861 272 Cannons 348 | . 348 . Explosions 126 | . . 126 Melee . | . . . Ramming 7 | . . 7 Kinetic 1169 | 279 890 . Thermal 591 | . 319 272 Explosive 126 | . . 126 Electromagnetic . | . . . Impact . | . . . Slashing . | . . . Piercing . | . . . Highest Corruption . | . . . Average Corruption . | . . . Corruption Purged . | . . . Corruption Blocked . | . . . Overload Shots . | . . . Overflow Damage 16 | . 14 2 Projectiles 14 | . 14 . Explosions 2 | . . 2 Melee . | . . . Knockbacks 4 | . 4 . Impact . | . . . Kinetic 4 | . 4 . Secondary . | . . . Self-Inflicted Damage 39 | . . 39 Shots 1 | . . 1 Rammed . | . . . Targets Rammed 4 | . . 4 Kicked 4 | . . 4 Crushed . | . . . Highest Temperature 198 | . 171 198 Average Temperature 46 | . 33 86 Received Heat Transfer 436 | . 333 103 Siege Activations . | . . . Robots Corrupted . | . . . Combat Hostiles . | . . . Parts Fried . | . . . Impact Corruptions . | . . . Robots Melted . | . . . Combat Hostiles . | . . . Parts Melted 5 | . 5 . Heat Transferred 1303 | . 958 345 Parts Sabotaged . | . . . Parts Stolen . | . . . Parts Stripped . | . . . Power Chain Reactions . | . . . Missiles Intercepted . | . . . Alert | -11 -10 -10 ------- Run | Scr Mat Min Peak Influence 235 | 55 235 171 Initial 35 | . 35 1 Average 64 | 22 64 95 Maximum Alert Level 1 | . 1 . Low Security (%) 88 | 100 86 100 Level 1 11 | . 13 . Level 2 . | . . . Level 3 . | . . . Level 4 . | . . . Level 5 . | . . . High Security . | . . . Max Security . | . . . Squads Dispatched 2 | . 2 . Investigation 2 | . 2 . Extermination . | . . . Reinforcement . | . . . Assault . | . . . Garrison . | . . . Intercept . | . . . Searches Triggered . | . . . Construction Impeded . | . . . Haulers Reinforced . | . . . Active Scanning Responses . | . . . Cargo Convoy Interrupts . | . . . Stealth | -11 -10 -10 --------- Run | Scr Mat Min Distress Signals 3 | . 3 . Communications Jammed . | . . . Distress Signals . | . . . Times Spotted 44 | . 26 18 Peak Tracking Total 14 | . 5 14 Tactical Retreats 2 | . 2 . Traps | -11 -10 -10 ------- Run | Scr Mat Min Traps Triggered 4 | . 4 . Indirectly . | . . . Trap Hack Attempts . | . . . Triggered . | . . . Disarmed . | . . . Reprogrammed . | . . . Reused . | . . . Traps Extracted . | . . . Installed . | . . . Triggered . | . . . Machines | -11 -10 -10 ---------- Run | Scr Mat Min Machines Disabled 1 | . 1 . Max in Single Turn 1 | . 1 . Machines Sabotaged . | . . . Garrisons Compromised . | . . . Overloaded Fab Kills . | . . . Hacking | -11 -10 -10 --------- Run | Scr Mat Min Machines Accessed 10 | . 10 . Terminals 8 | . 8 . Fabricators . | . . . Repair Stations . | . . . Recycling Units 2 | . 2 . Scanalyzers . | . . . Garrison Access . | . . . Total Hacks 23 | . 23 . Successful 19 | . 19 . Failed 4 | . 4 . Catastrophic . | . . . Database Lockouts . | . . . Manual 16 | . 16 . Terminals 21 | . 21 . Fabricators . | . . . Repair Stations . | . . . Recycling Units 2 | . 2 . Scanalyzers . | . . . Garrison Access . | . . . Terminal Hacks 6 | . 6 . Robot Analysis 4 | . 4 . Prototype ID Bank 1 | . 1 . Hauler Manifests 1 | . 1 . Fabricator Hacks . | . . . Repair Station Hacks . | . . . Recycling Unit Hacks 2 | . 2 . Report Inventory 2 | . 2 . Scanalyzer . | . . . Garrison Access Hacks . | . . . Unauthorized Hacks 11 | . 11 . Terminals 11 | . 11 . Assimilate 3 | . 3 . Botnet 7 | . 7 . Operators 1 | . 1 . Fabricators . | . . . Repair Stations . | . . . Recycling Units . | . . . Scanalyzers . | . . . Garrison Access . | . . . Data Cores Recovered . | . . . Used . | . . . Hacking Detections 4 | . 4 . Full Trace Events 1 | . 1 . Feedback Events . | . . . Feedback Blocked . | . . . Robot Schematics Acquired . | . . . Robots Built . | . . . Authchips . | . . . Time . | . . . Total Robot Build Rating . | . . . Part Schematics Acquired . | . . . Parts Built . | . . . Authchips . | . . . Time . | . . . Total Part Build Rating . | . . . Parts Repaired . | . . . Time . | . . . Parts Recycled . | . . . Recycled Matter . | . . . Retrieved Matter . | . . . Retrieved Components . | . . . Parts Scanalyzed . | . . . Part Schematics Acquired . | . . . Parts Damaged . | . . . Bothacking | -11 -10 -10 ------------ Run | Scr Mat Min Used RIF Installer . | . . . Robots Hacked . | . . . Non-combat . | . . . Combat . | . . . Robot Hacks Applied . | . . . Relay Couplers Released . | . . . Fabnet Peak Effective % . | . . . Robots Rewired . | . . . Allies Hacked . | . . . Hacks Repelled . | . . . Allies | -11 -10 -10 -------- Run | Scr Mat Min Total Allies 1 | . 1 . Largest Group 1 | . 1 1 Highest-Rated Group 10 | . 10 10 Highest-Rated Ally 10 | . 10 10 Total Orders . | . . . Ally Attacks . | . . . Total Damage . | . . . Kills . | . . . Allies Corrupted . | . . . Allies Melted . | . . . Intel | -11 -10 -10 ------- Run | Scr Mat Min Robot Analysis Total 4 | . 4 . Derelict Logs Recovered 1 | . . 1 Drone Launches . | . . . Drone Recoveries . | . . . Exploration | -11 -10 -10 ------------- Run | Scr Mat Min Turns Passed 3622 | 246 3092 284 Spaces Moved 1765 | 112 1531 122 Core 33 | 4 29 . Treads 272 | 91 181 . Legs 1460 | 17 1321 122 Wheels . | . . . Hover . | . . . Flight . | . . . Fastest Speed 50 | 50 120 190 Average Speed 171 | 150 171 190 Slowest Speed 250 | 160 250 190 Overloaded Moves . | . . . Propulsion Burnouts . | . . . Robots Hopped . | . . . Cave-ins Triggered . | . . . Exploration Rate (%) 47 | 7 97 37 Regions Visited 2 Branch Regions 1 Pre-discovered Areas . | . . . Known Exits Taken . | . . . Unknown Exits Taken 2 | 1 1 . Scrap Searched . | . . . Spaces Dug . | . . . Terrain Destroyed 24 | . . 24 Melee . | . . . Projectile . | . . . AOE 24 | . . 24 Terrain Rammed . | . . . Walls Destroyed . | . . . Machines Disabled . | . . . Actions | -11 -10 -10 --------- Run | Scr Mat Min Total 2171 | 150 1871 150 Wait 186 | . 183 3 Move 1763 | 111 1530 122 Hop . | . . . Pick Up 38 | 8 30 . Fast Attach 18 | 6 10 2 Attach 5 | 2 3 . Detach 1 | 1 . . Swap 13 | . 10 3 Drop 35 | 1 30 4 Fire 108 | 21 75 12 Melee . | . . . Ram . | . . . Kick 4 | . . 4 Crush . | . . . Escape Stasis . | . . . Rewire . | . . . Trap . | . . . Miscellaneous . | . . . Route ------- -11/Scrapyard -10/Materials (discovered 5 exits: [*Mat x3] / [*Min x2]) -10/Mines History --------- Turn | Location | Event 8 | -11/Scrapyard | Discovered new exit (range 15) 247 | -11/Scrapyard | Entered Materials 305 | -10/Materials | Build established: Mutant 421 | -10/Materials | Discovered new exit (range 14) 608 | -10/Materials | Discovered new exit (range 7) 679 | -10/Materials | Discovered new exit (range 16) 755 | -10/Materials | Core integrity fell below 50% 1067 | -10/Materials | Discovered new exit (range 13) 1516 | -10/Materials | Discovered new exit (range 9) 3339 | -10/Materials | Entered Mines 3339 | -10/Mines | Accompanied by 1 ally 3493 | -10/Mines | Received a Rocket Launcher from a helpful Derelict 3577 | -10/Mines | Learned 4 Materials zone layouts 3589 | -10/Mines | Assembled infested the area 3619 | -10/Mines | Core integrity fell below 20% 3623 | -10/Mines | Destroyed by as-36357 with Assembled Heavy Rifle Last Messages --------------- Data stored: Materials zone layouts (x4). 03578_ U-05 Engineer lays Concrete. 03589_ ALERT: Infestation in the mines, dispatching Demolisher response squad. 03604_ U-05 Engineer lays Concrete. 03612_ Technician 1a destroyed. 03612_ T-07 Excavator destroyed. 03615_ Spread Laser destroyed. 03615_ Kicked as-10821. 03616_ as-10821 destroyed. 03617_ Kicked as-02928. 03617_ Spread Laser destroyed. 03620_ Acquired 4 matter. 03620_ Ion Engine severed. 03621_ Kicked as-02928 out of the way. 03622_ Acquired 3 matter. 03622_ as-02928 destroyed. 03622_ as-93677 destroyed. 03622_ Aluminum Leg destroyed. 03622_ Kicked as-00545. Map ----- +----------------------------------------------------+ | #?????????????????????????????????????????????? | | #?????????????????????????????????????????????? | | #?????????????????????????????????????????????? | | ###???????????????????????????????????????????? | | ##??????????????????????????????????????????? | | #??????????????????????????????????????????? | | #??????????????????????????????????????????? | | ######??#???????????????????????????????????? | | ## #???????????????????????????????????? | | #????????????????????? ???????????? | | ## ####????????????????????? ##?????????? | | "" ## #???????????????????????? ##????????? | | "" ### #???????????????????????? #????????? | | "" #### #??????????????????????? ?????????? | | ## #??????????????????????? #?????????? | | ## #??????????????????????? #?????????? | | #### ##?????####?????????????? #?????????? | | ??## #??????# ?????????????? ##????????? | | ??# ##?????# ?????????????? ##???????? | | ??# #????## #?????????????? #???????? | | ??# #???## #????????????## ##??????? | | ??# #???# ##?????????### ???????? | | ??# ##???# ###?####### """ ??????? | | ??## #????# ###%*a= a """ ??????? | | ???# #????# ##a=a/ """ ??????? | | #### #?????# a!%@##### #??????? | | #????### a%aa*#???### ##??????? | | ##?###### #####?????? ##???????? | | #### #??# ## #?????????? ##????????? | | ???# #??# ## ##?????????? ##?????????? | | ???# #?## # ##??????????? ###??????????? | | ???# ##?# # % ##???????????? ##????????????? | | ???# #?## #??????????????#?????????????? | | ??## #?# #????????????????????????????? | | ?## #### ##????????????????????????????? | | ## ## ! ##?????????????????????????????? | | # ] =[%= ##??????????????????????????????? | | # ! ###???????????????????????????????? | | # * #?????????????????????????????????? | | ## ## # #?????????????????????????????????? | | ?###?### ## #?????????????????????????????????? | | ???????# ## ????????????????????????????????? | | ???????# ######???????????????????????????????? | | ??????? ????????????????????????????????????? | | ?????? ????????????????????????????????????? | | ?????# ##???????????????????????????????????? | | ?????## ###????????????????????????????????????? | | ??????###???????????????????????????????????????? | | ????????????????????????????????????????????????? | | | +----------------------------------------------------+ Best States ------------- Heat Dissipation 35 Coolant Potential 50 Energy Generation 10 Energy Capacity 250 Matter Stores 300 Matter Capacity 300 Sight Range 16 Terrain Scan Range 16 Terrain Scan Density 10 Armor Coverage 225 Evasion (%) 55 Recoil Reduction 2 Item Schematics ----------------- None Robot Schematics ------------------ None Fabricated ------------ Nothing Alien Tech Used ----------------- None Achievements -------------- None Challenges ------------ None Game ------ Seed ThrusterThiefLoader Manual? 0 Play Time 00:16:11 Cumulative 280.1 hours Start 2022.05.24 @ 10:20:07 End 2022.05.24 @ 10:35:00 Sessions 1 Manual Loads 0 Difficulty Rogue Special Mode None Game No. 521 Rogue 366 Adventurer 148 Explorer 7 Win Type - Total 10 Types 8/0/1/1/0/0/0/0/0 Lore% 72 Gallery% 84 Achievement% 66 Wizard Run 0 Options --------- ASCII 0 Keyboard 0 Movement Numpad Keybinds 0 Fullscreen 1 Font 18/SmallcapsGlow Map View 76x50 Tactical HUD 1 Map Filters NONE Filters NONE Steam 1 RUN: bbbb26ad-a476-4e4c-8e3f-3e2adaad1705